fUST/lending_fUST_20250624
["ID","MTS","AMOUNT","RATE_DAILY","PERIOD"]
[367275061,1750726238777,-460.0,0.00019287,2]
[367275062,1750726238787,-460.0,0.00019287,2]
[367275063,1750726238797,-460.0,0.00019287,2]
[367275064,1750726238806,-287.3923512,0.00019287,2]
[367275065,1750726238815,-174.24838121,0.00019287,2]
[367275066,1750726238825,-422.28363129,0.00019287,2]
[367275067,1750726238834,-460.0,0.00019287,2]
[367275068,1750726238843,-460.0,0.00019287,2]
[367275069,1750726238852,-460.0,0.00019287,2]
[367275070,1750726238861,-427.558322,0.00019287,2]
[367275071,1750726238870,-460.0,0.00019287,2]
[367275072,1750726238879,-460.0,0.00019287,2]
[367275073,1750726238889,-460.0,0.00019287,2]
[367275074,1750726238898,-460.0,0.00019287,2]
[367275075,1750726238908,-460.0,0.00019287,2]
[367275076,1750726238917,-460.0,0.00019287,2]
[367275077,1750726238926,-460.0,0.00019287,2]
[367275078,1750726238936,-430.0,0.00019287,2]
[367275079,1750726238946,-222.842108,0.00019287,2]
[367275080,1750726238955,-460.0,0.00019287,2]
[367275081,1750726238964,-460.0,0.00019287,2]
[367275082,1750726238974,-460.0,0.00019287,2]
[367275083,1750726238983,-460.0,0.00019287,2]
[367275084,1750726238992,-460.0,0.00019287,2]
[367275085,1750726239001,-460.0,0.00019287,2]
[367275086,1750726239010,-460.0,0.00019287,2]
[367275087,1750726239019,-460.0,0.00019287,2]
[367275088,1750726239028,-460.0,0.00019287,2]
[367275089,1750726239037,-460.0,0.00019287,2]
[367275090,1750726239047,-460.0,0.00019287,2]
[367275091,1750726239056,-460.0,0.00019287,2]
[367275092,1750726239065,-460.0,0.00019287,2]
[367275093,1750726239074,-460.0,0.00019287,2]
[367275094,1750726239083,-460.0,0.00019287,2]
[367275095,1750726239092,-460.0,0.00019287,2]
[367275096,1750726239101,-460.0,0.00019287,2]
[367275097,1750726239110,-679.41,0.00019287,2]
[367275098,1750726239119,-460.0,0.00019287,2]
[367275099,1750726239129,-608.16777087,0.00019287,2]
[367275100,1750726239167,-463.39405833,0.00019284,2]
[367275101,1750726239178,-460.0,0.00019285,2]
[367275102,1750726239191,-395.91222913,0.00019287,2]
[367275103,1750726239200,-460.0,0.00019287,2]
[367275104,1750726239210,-765.94,0.00019287,2]
[367275105,1750726239220,-460.0,0.00019287,2]
[367275106,1750726239229,-460.0,0.00019287,2]
[367275107,1750726239238,-460.0,0.00019287,2]
[367275108,1750726239248,-460.0,0.00019287,2]
[367275109,1750726239258,-460.0,0.00019287,2]
[367275110,1750726239271,-500.0,0.00019287,2]
[367275111,1750726239280,-460.0,0.00019287,2]
[367275112,1750726239289,-460.0,0.00019287,2]
[367275113,1750726239298,-460.0,0.00019287,2]
[367275114,1750726239308,-573.67,0.00019287,2]
[367275115,1750726239317,-460.0,0.00019287,2]
[367275116,1750726239326,-460.0,0.00019287,2]
[367275117,1750726239336,-510.55,0.00019287,2]
[367275118,1750726239346,-641.45,0.00019287,2]
[367275119,1750726239355,-374.2504009,0.00019287,2]
[367275120,1750726239365,-460.0,0.00019287,2]
[367275121,1750726239374,-460.0,0.00019287,2]
[367275122,1750726239383,-460.0,0.00019287,2]
[367275123,1750726239392,-460.0,0.00019287,2]
[367275124,1750726239402,-460.0,0.00019287,2]
[367275126,1750726239412,-460.0,0.00019287,2]
[367275127,1750726239421,-792.7,0.00019287,2]
[367275129,1750726239431,-558.92,0.00019287,2]
[367275131,1750726239443,-460.0,0.00019287,2]
[367275132,1750726239452,-460.0,0.00019287,2]
[367275133,1750726239461,-744.72,0.00019287,2]
[367275134,1750726239470,-460.0,0.00019287,2]
[367275135,1750726239479,-460.0,0.00019287,2]
[367275136,1750726239488,-460.0,0.00019287,2]
[367275137,1750726239499,-635.78,0.00019287,2]
[367275138,1750726239509,-6285.8,0.00019287,2]
[367275140,1750726239519,-468.72,0.00019287,2]
[367275141,1750726239528,-773.11,0.00019287,2]
[367275142,1750726239537,-460.0,0.00019287,2]
[367275143,1750726239546,-460.0,0.00019287,2]
[367275144,1750726239555,-460.0,0.00019287,2]
[367275145,1750726239564,-686.65,0.00019287,2]
[367275146,1750726239573,-460.0,0.00019287,2]
[367275147,1750726239582,-902.81,0.00019287,2]
[367275148,1750726239591,-460.0,0.00019287,2]
[367275149,1750726239600,-515.50846539,0.00019287,2]
[367275150,1750726239610,-460.0,0.00019287,2]
[367275151,1750726239620,-500.0,0.00019288,2]
[367275152,1750726239629,-460.0,0.00019288,2]
[367275153,1750726239639,-460.0,0.00019288,2]
[367275154,1750726239649,-460.0,0.00019288,2]
[367275155,1750726239658,-460.0,0.00019288,2]
[367275156,1750726239667,-460.0,0.00019288,2]
[367275157,1750726239677,-460.0,0.00019288,2]
[367275158,1750726239686,-281.02679002,0.00019288,2]
[367275159,1750726239696,-460.0,0.00019288,2]
[367275160,1750726239705,-460.0,0.00019288,2]
[367275161,1750726239714,-460.0,0.00019288,2]
[367275162,1750726239723,-460.0,0.00019288,2]
[367275164,1750726239732,-460.0,0.00019288,2]
[367275165,1750726239741,-460.0,0.00019288,2]
[367275166,1750726239750,-460.0,0.00019288,2]
[367275167,1750726239759,-460.0,0.00019288,2]
[367275168,1750726239767,-475.75,0.00019288,2]
[367275169,1750726239778,-460.0,0.00019288,2]
[367275170,1750726239786,-460.0,0.00019288,2]
[367275171,1750726239795,-460.0,0.00019288,2]
[367275172,1750726239804,-460.0,0.00019288,2]
[367275173,1750726239813,-601.66,0.00019288,2]
[367275174,1750726239822,-460.0,0.00019288,2]
[367275175,1750726239831,-460.0,0.00019288,2]
[367275177,1750726239841,-460.0,0.00019288,2]
[367275179,1750726239850,-460.0,0.00019288,2]
[367275181,1750726239859,-460.0,0.00019288,2]
[367275183,1750726239868,-2475.36,0.00019288,2]
[367275185,1750726239877,-460.96978238,0.00019288,2]
[367275186,1750726239886,-460.0,0.00019288,2]
[367275187,1750726239895,-460.0,0.00019288,2]
[367275188,1750726239904,-923.78,0.00019288,2]
[367275189,1750726239913,-460.0,0.00019288,2]
[367275190,1750726239923,-746.18,0.00019288,2]
[367275191,1750726239932,-460.0,0.00019288,2]
[367275192,1750726239943,-460.0,0.00019288,2]
[367275193,1750726239953,-460.0,0.00019288,2]
[367275194,1750726239962,-460.0,0.00019288,2]
[367275195,1750726239971,-2557.08,0.00019288,2]
[367275196,1750726239980,-460.0,0.00019288,2]
[367275198,1750726239989,-795.28,0.00019288,2]
[367275199,1750726239999,-460.0,0.00019288,2]
[367275200,1750726240008,-460.0,0.00019288,2]
[367275201,1750726240017,-505.67,0.00019288,2]
[367275202,1750726240027,-460.0,0.00019288,2]
[367275203,1750726240037,-460.0,0.00019288,2]
[367275204,1750726240046,-467.26,0.00019288,2]
[367275205,1750726240055,-460.0,0.00019288,2]
[367275206,1750726240064,-225.36768534,0.00019288,2]
[367275207,1750726240075,-2295.2,0.00019288,2]
[367275208,1750726240084,-460.0,0.00019288,2]
[367275209,1750726240093,-1461.57,0.00019288,2]
[367275211,1750726240103,-3636.45,0.00019288,2]
[367275213,1750726240112,-621.3,0.00019288,2]
[367275215,1750726240121,-1199.55,0.00019288,2]
[367275216,1750726240130,-460.0,0.00019288,2]
[367275217,1750726240140,-370.0,0.00019288,2]
[367275218,1750726240149,-460.0,0.00019288,2]
[367275219,1750726240158,-2281.63,0.00019288,2]
[367275220,1750726240168,-460.0,0.00019289,2]
[367275221,1750726240178,-462.73940007,0.00019289,2]
[367275222,1750726240188,-460.0,0.00019289,2]
[367275223,1750726240201,-460.0,0.00019289,2]
[367275224,1750726240210,-460.0,0.00019289,2]
[367275225,1750726240220,-460.0,0.00019289,2]
[367275226,1750726240230,-460.0,0.00019289,2]
[367275227,1750726240240,-460.0,0.00019289,2]
[367275228,1750726240249,-460.0,0.00019289,2]
[367275229,1750726240261,-460.0,0.00019289,2]
[367275230,1750726240271,-460.0,0.00019289,2]
[367275231,1750726240280,-460.0,0.00019289,2]
[367275232,1750726240289,-460.0,0.00019289,2]
[367275233,1750726240298,-460.0,0.00019289,2]
[367275234,1750726240416,-460.0,0.00019289,2]
[367275235,1750726240426,-460.0,0.00019289,2]
[367275236,1750726240435,-460.0,0.00019289,2]
[367275237,1750726240446,-500.0,0.00019289,2]
[367275238,1750726240455,-649.71,0.00019289,2]
[367275239,1750726240464,-460.0,0.00019289,2]
[367275240,1750726240473,-460.0,0.00019289,2]
[367275241,1750726240482,-460.0,0.00019289,2]
[367275242,1750726240491,-460.0,0.00019289,2]
[367275243,1750726240500,-460.0,0.00019289,2]
[367275244,1750726240509,-460.0,0.00019289,2]
[367275245,1750726240518,-460.0,0.00019289,2]
[367275246,1750726240527,-460.0,0.00019289,2]
[367275247,1750726240537,-460.0,0.00019289,2]
[367275248,1750726240547,-313.44889633,0.00019289,2]
[367275249,1750726240557,-460.0,0.00019289,2]
[367275250,1750726240566,-460.0,0.00019289,2]
[367275251,1750726240575,-677.32,0.00019289,2]
[367275252,1750726240584,-460.0,0.00019289,2]
[367275253,1750726240593,-460.0,0.00019289,2]
[367275254,1750726240602,-460.0,0.00019289,2]
[367275255,1750726240612,-460.0,0.00019289,2]
[367275256,1750726240622,-500.0,0.00019289,2]
[367275257,1750726240631,-460.0,0.00019289,2]
[367275258,1750726240641,-460.0,0.00019289,2]
[367275259,1750726240650,-460.0,0.00019289,2]
[367275260,1750726240659,-460.0,0.00019289,2]
[367275261,1750726240668,-460.0,0.00019289,2]
[367275262,1750726240677,-460.0,0.00019289,2]
[367275263,1750726240686,-460.0,0.00019289,2]
[367275264,1750726240697,-460.0,0.00019289,2]
[367275265,1750726240707,-460.0,0.00019289,2]
[367275266,1750726240716,-522.88,0.00019289,2]
[367275267,1750726240726,-460.0,0.00019289,2]
[367275268,1750726240736,-460.0,0.00019289,2]
[367275269,1750726240745,-460.0,0.00019289,2]
[367275270,1750726240754,-460.0,0.00019289,2]
[367275271,1750726240763,-460.0,0.00019289,2]
[367275272,1750726240773,-460.0,0.00019289,2]
[367275273,1750726240782,-1092.47,0.00019289,2]
[367275274,1750726240791,-460.0,0.00019289,2]
[367275275,1750726240801,-460.0,0.00019289,2]
[367275276,1750726240810,-460.0,0.00019289,2]
[367275277,1750726240819,-460.0,0.00019289,2]
[367275278,1750726240828,-460.0,0.00019289,2]
[367275279,1750726240837,-460.0,0.00019289,2]
[367275280,1750726240846,-460.0,0.00019289,2]
[367275281,1750726240855,-460.0,0.00019289,2]
[367275282,1750726240864,-460.0,0.00019289,2]
[367275283,1750726240875,-460.0,0.00019289,2]
[367275284,1750726240884,-505.98,0.00019289,2]
[367275285,1750726240893,-460.0,0.00019289,2]
[367275286,1750726240902,-686.71,0.00019289,2]
[367275287,1750726240912,-1127.47,0.00019289,2]
[367275288,1750726240921,-460.0,0.00019289,2]
[367275289,1750726240931,-460.0,0.00019289,2]
[367275290,1750726240940,-460.0,0.00019289,2]
[367275291,1750726240950,-824.68,0.00019289,2]
[367275292,1750726240959,-460.0,0.00019289,2]
[367275293,1750726240970,-460.0,0.00019289,2]
[367275294,1750726240979,-460.0,0.0001929,2]
[367275295,1750726240988,-460.0,0.0001929,2]
[367275296,1750726240997,-229.66,0.00019292,2]
[367275297,1750726241007,-460.0,0.00019293,2]
[367275298,1750726241016,-430.0,0.00019293,2]
[367275299,1750726241025,-245.65382674,0.00019293,2]
[367275300,1750726241035,-460.0,0.00019293,2]
[367275301,1750726241044,-460.0,0.00019293,2]
[367275302,1750726241056,-460.0,0.00019293,2]
[367275303,1750726241066,-460.0,0.00019293,2]
[367275304,1750726241075,-460.0,0.00019293,2]
[367275305,1750726241084,-296.15739094,0.00019293,2]
[367275306,1750726241094,-460.0,0.00019293,2]
[367275307,1750726241103,-460.0,0.00019293,2]
[367275308,1750726241113,-460.0,0.00019293,2]
[367275309,1750726241122,-460.0,0.00019293,2]
[367275310,1750726241131,-460.0,0.00019293,2]
[367275311,1750726241140,-460.0,0.00019293,2]
[367275312,1750726241150,-460.0,0.00019293,2]
[367275313,1750726241160,-460.0,0.00019293,2]
[367275314,1750726241170,-460.0,0.00019293,2]
[367275315,1750726241181,-460.0,0.00019293,2]
[367275316,1750726241193,-460.0,0.00019293,2]
[367275317,1750726241202,-460.0,0.00019293,2]
[367275318,1750726241212,-460.0,0.00019293,2]
[367275319,1750726241223,-460.0,0.00019293,2]
[367275320,1750726241232,-460.0,0.00019293,2]
[367275321,1750726241242,-304.36313278,0.00019293,2]
[367275322,1750726241251,-460.0,0.00019293,2]
[367275323,1750726241261,-460.0,0.00019294,2]
[367275324,1750726241272,-460.0,0.00019294,2]
[367275325,1750726241281,-460.0,0.00019294,2]
[367275326,1750726241291,-273.77672616,0.00019327,2]
[367275327,1750726241301,-460.0,0.00019559,2]
[367275328,1750726241310,-460.0,0.00019559,2]
[367275329,1750726241319,-460.0,0.00019559,2]
[367275330,1750726241329,-460.0,0.0001956,2]
[367275331,1750726241339,-460.0,0.0001956,2]
[367275332,1750726241349,-460.0,0.0001956,2]
[367275333,1750726241358,-460.0,0.0001956,2]
[367275334,1750726241367,-2676.44,0.0001956,2]
[367275335,1750726241376,-606.87,0.0001956,2]
[367275336,1750726241386,-460.0,0.0001956,2]
[367275337,1750726241395,-460.0,0.0001956,2]
[367275338,1750726241404,-460.0,0.0001956,2]
[367275339,1750726241414,-1568.67,0.0001956,2]
[367275340,1750726241423,-460.0,0.0001956,2]
[367275341,1750726241433,-460.0,0.0001956,2]
[367275342,1750726241443,-2061.15,0.0001956,2]
[367275343,1750726241452,-343.37,0.0001956,2]
[367275344,1750726241461,-460.0,0.0001956,2]
[367275345,1750726241471,-460.0,0.0001956,2]
[367275346,1750726241481,-460.0,0.0001956,2]
[367275347,1750726241490,-3713.34,0.0001956,2]
[367275348,1750726241499,-460.0,0.0001956,2]
[367275349,1750726241508,-460.0,0.0001956,2]
[367275350,1750726241517,-460.0,0.0001956,2]
[367275351,1750726241526,-477.08,0.0001956,2]
[367275352,1750726241535,-460.0,0.0001956,2]
[367275353,1750726241545,-460.0,0.0001956,2]
[367275354,1750726241555,-460.0,0.0001956,2]
[367275355,1750726241564,-460.0,0.0001956,2]
[367275356,1750726241574,-1154.07,0.0001956,2]
[367275357,1750726241583,-613.63,0.0001956,2]
[367275358,1750726241592,-460.0,0.0001956,2]
[367275359,1750726241601,-2122.3,0.0001956,2]
[367275360,1750726241610,-578.29962692,0.0001956,2]
[367275361,1750726241619,-1036.93,0.0001956,2]
[367275362,1750726241628,-460.0,0.0001956,2]
[367275363,1750726241638,-664.47,0.0001956,2]
[367275364,1750726241647,-2820.01,0.0001956,2]
[367275365,1750726241656,-827.74,0.0001956,2]
[367275366,1750726241665,-460.0,0.0001956,2]
[367275367,1750726241675,-571.98,0.0001956,2]
[367275368,1750726241684,-255.74,0.0001956,2]
[367275369,1750726241695,-460.0,0.0001956,2]
[367275370,1750726241705,-2277.68,0.0001956,2]
[367275371,1750726241714,-460.0,0.00019561,2]
[367275372,1750726241724,-460.0,0.00019561,2]
[367275373,1750726241734,-460.0,0.00019561,2]
[367275374,1750726241743,-460.0,0.00019561,2]
[367275375,1750726241753,-460.0,0.00019561,2]
[367275376,1750726241762,-460.0,0.00019561,2]
[367275377,1750726241771,-460.0,0.00019561,2]
[367275378,1750726241781,-460.0,0.00019561,2]
[367275379,1750726241791,-460.0,0.00019561,2]
[367275380,1750726241800,-460.0,0.00019561,2]
[367275381,1750726241810,-460.0,0.00019561,2]
[367275382,1750726241820,-460.0,0.00019561,2]
[367275383,1750726241829,-460.0,0.00019561,2]
[367275384,1750726241838,-521.35,0.00019561,2]
[367275385,1750726241849,-460.0,0.00019561,2]
[367275386,1750726241858,-460.0,0.00019561,2]
[367275387,1750726241870,-206.99051486,0.00019561,2]
[367275388,1750726241880,-460.0,0.00019561,2]
[367275389,1750726241890,-460.0,0.00019561,2]
[367275390,1750726241900,-460.0,0.00019561,2]
[367275391,1750726241909,-460.0,0.00019561,2]
[367275392,1750726241919,-460.0,0.00019561,2]
[367275393,1750726241929,-460.0,0.00019561,2]
[367275394,1750726241938,-460.0,0.00019561,2]
[367275395,1750726241948,-679.41,0.00019561,2]
[367275396,1750726241958,-460.0,0.00019561,2]
[367275397,1750726241967,-1004.08,0.00019561,2]
[367275398,1750726241977,-765.94,0.00019561,2]
[367275399,1750726241987,-460.0,0.00019561,2]
[367275400,1750726241996,-460.0,0.00019561,2]
[367275401,1750726242005,-460.0,0.00019561,2]
[367275402,1750726242015,-460.0,0.00019561,2]
[367275403,1750726242023,-460.0,0.00019561,2]
[367275404,1750726242033,-460.0,0.00019561,2]
[367275405,1750726242042,-573.67,0.00019561,2]
[367275406,1750726242052,-460.0,0.00019561,2]
[367275407,1750726242061,-460.0,0.00019561,2]
[367275408,1750726242070,-510.55,0.00019561,2]
[367275409,1750726242080,-641.45,0.00019561,2]
[367275410,1750726242089,-460.0,0.00019561,2]
[367275411,1750726242099,-460.0,0.00019561,2]
[367275412,1750726242109,-460.0,0.00019561,2]
[367275413,1750726242119,-460.0,0.00019561,2]
[367275414,1750726242128,-460.0,0.00019561,2]
[367275415,1750726242138,-460.0,0.00019561,2]
[367275416,1750726242149,-792.7,0.00019561,2]
[367275417,1750726242158,-558.92,0.00019561,2]
[367275418,1750726242168,-460.0,0.00019561,2]
[367275419,1750726242178,-460.0,0.00019561,2]
[367275420,1750726242189,-744.72,0.00019561,2]
[367275421,1750726242200,-460.0,0.00019561,2]
[367275422,1750726242210,-460.0,0.00019561,2]
[367275423,1750726242219,-460.0,0.00019561,2]
[367275424,1750726242228,-635.78,0.00019561,2]
[367275425,1750726242239,-6285.8,0.00019561,2]
[367275426,1750726242248,-773.11,0.00019561,2]
[367275427,1750726242259,-460.0,0.00019561,2]
[367275428,1750726242269,-460.0,0.00019561,2]
[367275429,1750726242279,-460.0,0.00019561,2]
[367275430,1750726242289,-686.65,0.00019561,2]
[367275431,1750726242298,-460.0,0.00019561,2]
[367275432,1750726242307,-902.81,0.00019561,2]
[367275433,1750726242316,-460.0,0.00019561,2]
[367275435,1750726242326,-460.0,0.00019561,2]
[367275436,1750726242336,-190.40750909,0.00019562,2]
[367275437,1750726242345,-460.0,0.00019562,2]
[367275438,1750726242355,-460.0,0.00019562,2]
[367275440,1750726242365,-460.0,0.00019562,2]
[367275441,1750726242374,-460.0,0.00019562,2]
[367275442,1750726242384,-460.0,0.00019562,2]
[367275443,1750726242393,-460.0,0.00019562,2]
[367275444,1750726242401,-460.0,0.00019562,2]
[367275445,1750726242411,-487.28,0.00019562,2]
[367275447,1750726242420,-341.78845594,0.00019562,2]
[367275449,1750726242429,-460.0,0.00019562,2]
[367275451,1750726242439,-192.17522865,0.00019562,2]
[367275453,1750726242449,-460.0,0.00019562,2]
[367275455,1750726242458,-460.0,0.00019562,2]
[367275456,1750726242468,-601.66,0.00019562,2]
[367275457,1750726242477,-460.0,0.00019562,2]
[367275458,1750726242486,-471.47923443,0.00019562,2]
[367275459,1750726242496,-460.0,0.00019562,2]
[367275460,1750726242505,-460.0,0.00019562,2]
[367275461,1750726242514,-2475.36,0.00019562,2]
[367275462,1750726242524,-460.0,0.00019562,2]
[367275463,1750726242533,-460.0,0.00019562,2]
[367275464,1750726242542,-923.78,0.00019562,2]
[367275465,1750726242552,-460.0,0.00019562,2]
[367275466,1750726242560,-746.18,0.00019562,2]
[367275467,1750726242570,-460.0,0.00019562,2]
[367275468,1750726242579,-460.0,0.00019562,2]
[367275470,1750726242588,-460.0,0.00019562,2]
[367275471,1750726242598,-2557.08,0.00019562,2]
[367275472,1750726242607,-460.0,0.00019562,2]
[367275473,1750726242617,-795.28,0.00019562,2]
[367275476,1750726242713,-460.0,0.00019562,2]
[367275477,1750726242735,-505.67,0.00019562,2]
[367275478,1750726242745,-390.0,0.00019562,2]
[367275479,1750726242755,-467.26,0.00019562,2]
[367275480,1750726242764,-433.71969629,0.00019562,2]
[367275481,1750726242773,-2295.2,0.00019562,2]
[367275482,1750726242783,-460.0,0.00019562,2]
[367275483,1750726242792,-1461.57,0.00019562,2]
[367275484,1750726242801,-3636.45,0.00019562,2]
[367275485,1750726242810,-621.3,0.00019562,2]
[367275486,1750726242819,-1199.55,0.00019562,2]
[367275487,1750726242829,-460.0,0.00019562,2]
[367275488,1750726242838,-495.61,0.00019563,2]
[367275489,1750726242847,-350.0,0.00019563,2]
[367275490,1750726242856,-460.0,0.00019563,2]
[367275491,1750726242865,-460.0,0.00019563,2]
[367275492,1750726242874,-460.0,0.00019563,2]
[367275493,1750726242884,-460.0,0.00019563,2]
[367275494,1750726242893,-460.0,0.00019563,2]
[367275495,1750726242902,-460.0,0.00019563,2]
[367275496,1750726242911,-460.0,0.00019563,2]
[367275497,1750726242920,-460.0,0.00019563,2]
[367275498,1750726242929,-500.0,0.00019563,2]
[367275499,1750726242938,-649.71,0.00019563,2]
[367275500,1750726242948,-460.0,0.00019563,2]
[367275501,1750726242957,-460.0,0.00019563,2]
[367275502,1750726242966,-460.0,0.00019563,2]
[367275503,1750726242975,-460.0,0.00019563,2]
[367275504,1750726242985,-460.0,0.00019563,2]
[367275505,1750726242994,-404.60494926,0.00019563,2]
[367275506,1750726243003,-460.0,0.00019563,2]
[367275507,1750726243012,-552.32044675,0.00019563,2]
[367275508,1750726243021,-460.0,0.00019563,2]
[367275509,1750726243030,-460.0,0.00019563,2]
[367275510,1750726243039,-677.32,0.00019563,2]
[367275511,1750726243047,-460.0,0.00019563,2]
[367275512,1750726243056,-460.0,0.00019563,2]
[367275513,1750726243064,-460.0,0.00019563,2]
[367275514,1750726243073,-460.0,0.00019563,2]
[367275515,1750726243082,-460.0,0.00019563,2]
[367275516,1750726243091,-460.0,0.00019563,2]
[367275518,1750726243100,-460.0,0.00019563,2]
[367275519,1750726243108,-460.0,0.00019563,2]
[367275520,1750726243117,-460.0,0.00019563,2]
[367275521,1750726243126,-522.88,0.00019563,2]
[367275523,1750726243136,-590.17,0.00019563,2]
[367275524,1750726243145,-460.0,0.00019563,2]
[367275525,1750726243154,-460.0,0.00019563,2]
[367275526,1750726243162,-460.0,0.00019563,2]
[367275527,1750726243171,-460.0,0.00019563,2]
[367275528,1750726243181,-1092.47,0.00019563,2]
[367275529,1750726243193,-460.0,0.00019563,2]
[367275530,1750726243201,-460.0,0.00019563,2]
[367275531,1750726243210,-460.0,0.00019563,2]
[367275532,1750726243220,-541.28,0.00019563,2]
[367275533,1750726243229,-460.0,0.00019563,2]
[367275534,1750726243238,-460.0,0.00019563,2]
[367275535,1750726243247,-460.0,0.00019563,2]
[367275536,1750726243256,-460.0,0.00019563,2]
[367275537,1750726243266,-460.0,0.00019563,2]
[367275538,1750726243275,-505.98,0.00019563,2]
[367275539,1750726243285,-686.71,0.00019563,2]
[367275540,1750726243294,-1127.47,0.00019563,2]
[367275541,1750726243303,-460.0,0.00019563,2]
[367275542,1750726243313,-460.0,0.00019563,2]
[367275543,1750726243322,-824.68,0.00019563,2]
[367275544,1750726243332,-460.0,0.00019563,2]
[367275545,1750726243341,-460.0,0.00019564,2]
[367275546,1750726243350,-460.0,0.00019564,2]
[367275547,1750726243361,-460.0,0.00019567,2]
[367275548,1750726243371,-518.26,0.00019567,2]
[367275549,1750726243380,-460.0,0.00019567,2]
[367275550,1750726243390,-460.0,0.00019567,2]
[367275551,1750726243399,-460.0,0.00019567,2]
[367275552,1750726243408,-460.0,0.00019567,2]
[367275553,1750726243418,-460.0,0.00019567,2]
[367275554,1750726243427,-460.0,0.00019567,2]
[367275555,1750726243437,-171.21416857,0.00019567,2]
[367275556,1750726243447,-460.0,0.00019567,2]
[367275557,1750726243457,-188.84,0.00019567,2]
[367275558,1750726243466,-460.0,0.00019567,2]
[367275559,1750726243475,-460.0,0.00019567,2]
[367275560,1750726243485,-592.57,0.00019567,2]
[367275561,1750726243495,-460.0,0.00019567,2]
[367275562,1750726243504,-460.0,0.00019567,2]
[367275563,1750726243513,-460.0,0.00019567,2]
[367275564,1750726243524,-460.0,0.00019568,2]
[367275565,1750726243533,-486.71417985,0.00019656,2]
[367275566,1750726243543,-2869.55478478,0.00019735,2]
[367275567,1750726243552,-460.0,0.00019833,2]
[367275568,1750726243561,-460.0,0.00019833,2]
[367275569,1750726243571,-460.0,0.00019833,2]
[367275570,1750726243580,-460.0,0.00019834,2]
[367275571,1750726243590,-460.0,0.00019834,2]
[367275572,1750726243599,-460.0,0.00019834,2]
[367275573,1750726243608,-2676.44,0.00019834,2]
[367275574,1750726243618,-460.0,0.00019834,2]
[367275575,1750726243627,-460.0,0.00019834,2]
[367275576,1750726243636,-460.0,0.00019834,2]
[367275577,1750726243646,-1568.67,0.00019834,2]
[367275578,1750726243655,-460.0,0.00019834,2]
[367275579,1750726243664,-352.55,0.00019834,2]
[367275580,1750726243673,-2061.15,0.00019834,2]
[367275581,1750726243682,-460.0,0.00019834,2]
[367275582,1750726243691,-460.0,0.00019834,2]
[367275583,1750726243701,-460.0,0.00019834,2]
[367275584,1750726243711,-3713.34,0.00019834,2]
[367275585,1750726243720,-500.56,0.00019834,2]
[367275586,1750726243729,-460.0,0.00019834,2]